[Event "WYCC 2018 G16"]
[Site "Halkidiki"]
[Date "2018.10.20"]
[Round "1"]
[White "Schulze, Lara"]
[Black "Sabiani, Chjara"]
[Result "1-0"]
[ECO "B32"]
[WhiteElo "2122"]
[BlackElo "1778"]
[Annotator "NA"]
[PlyCount "119"]
[EventDate "2018.10.20"]
[EventType "swiss"]
[EventCountry "GRE"]
[SourceTitle "playchess.com"]
[Source "ChessBase"]
[SourceQuality "1"]
[TimeControl "40/5400+30:1800+30"]

1. e4 {[%emt 0:00:00]} c5 {[%emt 0:00:00]} 2. Nf3 {[%emt 0:00:00]} Nc6 {[%emt 0:00:00]} 3. d4 {[%emt 0:00:00]} cxd4 {[%emt 0:00:00]} 4. Nxd4 {[%emt 0:00:00]} e5 {[%emt 0:00:00]} 5. Nb5 {[%emt 0:00:00]} d6 {[%emt 0:00:04]} 6. N1c3 {[%emt 0:00:00]} a6 {[%emt 0:00:12]} 7. Na3 {[%emt 0:00:03]} b5 {[%emt 0:00:14]} 8. Nd5 {[%emt 0:00:10]} Nf6 {[%emt 0:00:24]} 9. Bg5 {[%emt 0:00:09]} Be7 {[%emt 0:00:06]} 10. Bxf6 {[%emt 0:00:05]} Bxf6 {[%emt 0:00:11]} 11. c4 {[%emt 0:00:14]} b4 {[%emt 0:00:15] B33: Sicilian: Pelikan and Sveshnikov Variations} 12. Nc2 {[%emt 0:00:06]} O-O {[%emt 0:00:18]} (12... a5 13. Qf3 Be6 14. Rd1 Bxd5 15. Rxd5 Ne7 16. Rb5 Rb8 17. Bd3 Bg5 18. O-O O-O 19. Rd1 Qc7 20. a3 b3 {½-½ (72) Bogner,S (2619)-Cordova,E (2609) Batumi 2018}) 13. g3 {[%emt 0:00:56]} Bg5 {[%emt 0:01:36]} 14. Bg2 {[%emt 0:00:56]} Qa5 {[%emt 0:01:05]} 15. O-O {[%emt 0:01:22]} Qc5 {[%emt 0:00:31]} 16. Qd3 {[%emt 0:01:58]} a5 {[%emt 0:03:49]} 17. Rad1 {[%emt 0:04:43]} Bg4 {[%emt 0:07:00]} 18. Rde1 {[%emt 0:05:39]} f5 $146 {[%emt 0:13:39]} ({Predecessor:} 18... Rac8 19. b3 {1-0 (48) Rubio Tent,F (2199)-Blanco Acevedo,C (2346) Linares 2016}) 19. Nde3 {[%emt 0:18:59]} Bxe3 {[%emt 0:09:31]} 20. Nxe3 {[%emt 0:10:11]} Nd4 {[%emt 0:11:35]} 21. Nxf5 {[%emt 0:02:21]} Bxf5 {[%emt 0:01:40]} 22. exf5 {[%emt 0:00:08]} Ra7 {[%emt 0:00:49]} 23. Bd5+ {[%emt 0:06:58]} Kh8 {[%emt 0:00:12]} 24. g4 {[%emt 0:01:14]} Rf6 {[%emt 0:07:28]} 25. Kh1 {[%emt 0:04:07]} Re7 {[%emt 0:10:48]} 26. f4 {[%emt 0:06:37]} Nc6 {[%emt 0:11:20]} 27. Bxc6 {[%emt 0:14:07]} Qxc6+ {[%emt 0:00:06]} 28. Qd5 {[%emt 0:00:05]} Qxd5+ {[%emt 0:02:18]} 29. cxd5 {[%emt 0:00:01]} e4 {[%emt 0:00:35]} 30. Re3 {[%emt 0:04:49]} Kg8 {[%emt 0:02:29]} 31. Rc1 {[%emt 0:03:00]} h5 {[%emt 0:04:03]} 32. h3 {[%emt 0:04:10]} hxg4 {[%emt 0:04:47]} 33. hxg4 {[%emt 0:00:18]} g6 {[%emt 0:00:07]} 34. Rc8+ {[%emt 0:03:21]} Kg7 {[%emt 0:01:24]} 35. Rh3 {[%emt 0:04:49]} gxf5 {[%emt 0:07:01]} 36. Rch8 {[%emt 0:01:21]} Rff7 {[%emt 0:01:09]} 37. R8h5 {[%emt 0:04:21]} Kg8 {[%emt 0:00:49]} 38. Rh8+ {[%emt 0:00:59]} Kg7 {[%emt 0:00:02]} 39. g5 {[%emt 0:00:29]} Rc7 {[%emt 0:01:09]} 40. R3h7+ {[%emt 0:00:00]} Kg6 {[%emt 0:00:00]} 41. Rh6+ {[%emt 0:08:52]} Kg7 {[%emt 0:00:25]} 42. R8h7+ {[%emt 0:04:39]} Kg8 {[%emt 0:00:51]} 43. Rxf7 {[%emt 0:00:51]} Rxf7 {[%emt 0:00:09]} 44. Rxd6 {[%emt 0:00:17]} Rh7+ {[%emt 0:00:40]} 45. Rh6 {[%emt 0:01:47]} Rc7 {[%emt 0:00:30]} 46. Rc6 {[%emt 0:00:16]} Rh7+ {[%emt 0:00:07]} 47. Kg2 {[%emt 0:02:22]} e3 {[%emt 0:01:53]} 48. Rh6 {[%emt 0:03:45]} Rc7 {[%emt 0:01:47]} 49. Kf3 {[%emt 0:01:05]} b3 {[%emt 0:06:16]} 50. axb3 {[%emt 0:00:58]} Rc2 {[%emt 0:01:20]} 51. Kxe3 {[%emt 0:02:12]} Rxb2 {[%emt 0:00:15]} 52. d6 {[%emt 0:02:01]} Rxb3+ $18 {[%emt 0:00:11]} 53. Kd4 {[%emt 0:00:10]} Rb1 {[%emt 0:00:28]} 54. Ke5 {[%emt 0:01:24]} Rd1 {[%emt 0:00:21]} 55. Ke6 {[%emt 0:02:33]} a4 {[%emt 0:00:24]} 56. Rh3 {[%emt 0:01:13]} Rd4 {[%emt 0:00:41]} 57. Rc3 {[%emt 0:01:59]} Rxf4 {[%emt 0:00:25]} 58. d7 {[%emt 0:00:58]} Re4+ {[%emt 0:00:17]} 59. Kf6 {[%emt 0:00:07]} Rd4 {[%emt 0:00:10]} 60. Rc8+ {[%emt 0:00:05]} 1-0

[Event "WYCC 2018 G16"]
[Site "Halkidiki"]
[Date "2018.10.20"]
[Round "1"]
[White "Bulatova, Kamaliya"]
[Black "Leonova, Ameliya"]
[Result "1-0"]
[ECO "A58"]
[WhiteElo "2108"]
[BlackElo "1736"]
[Annotator "NA"]
[PlyCount "51"]
[EventDate "2018.10.20"]
[EventType "swiss"]
[EventCountry "GRE"]
[SourceTitle "playchess.com"]
[Source "ChessBase"]
[SourceQuality "1"]
[TimeControl "40/5400+30:1800+30"]

1. d4 {[%emt 0:00:00]} Nf6 {[%emt 0:00:00]} 2. c4 {[%emt 0:00:00]} c5 {[%emt 0:00:00]} 3. d5 {[%emt 0:00:00]} b5 {[%emt 0:00:00]} 4. cxb5 {[%emt 0:00:00]} a6 {[%emt 0:00:00]} 5. bxa6 {[%emt 0:00:00]} g6 {[%emt 0:00:07]} 6. Nc3 {[%emt 0:00:01] A58: Wolga/Benkö-Gambit} Bg7 {[%emt 0:00:09]} 7. e4 {[%emt 0:00:17]} O-O {[%emt 0:00:17]} 8. Be2 {[%emt 0:00:42]} Qa5 {[%emt 0:03:54]} 9. Bd2 {[%emt 0:00:35]} Bxa6 {[%emt 0:00:18]} 10. e5 {[%emt 0:02:56]} Ne8 {[%emt 0:07:18]} 11. Nf3 {[%emt 0:00:29]} d6 {[%emt 0:02:26]} 12. e6 {[%emt 0:02:28]} fxe6 {[%emt 0:09:04]} 13. Ng5 {[%emt 0:09:06] [#]} e5 $146 {[%emt 0:33:05]} ({Vorgänger:} 13... Bxe2 14. Nxe2 {0-1 (62) Cheparinov,I (2681)-Melkumyan,H (2622) Berlin 2015}) 14. Ne6 {[%emt 0:05:03]} Rf7 {[%emt 0:05:32]} 15. Ne4 {[%emt 0:18:54]} Bxe2 {[%emt 0:05:11]} 16. Qxe2 {[%emt 0:00:14]} Qb6 {[%emt 0:00:13]} 17. O-O {[%emt 0:03:59]} Nc7 {[%emt 0:11:59]} 18. N6g5 {[%emt 0:06:08]} Rf5 {[%emt 0:04:51]} 19. Qg4 {[%emt 0:03:53]} Nxd5 {[%emt 0:07:38]} 20. Ng3 {[%emt 0:02:06]} Rf6 {[%emt 0:02:59]} 21. Qc8+ {[%emt 0:01:36]} Bf8 $18 {[%emt 0:01:31]} 22. N3e4 {[%emt 0:00:27]} Qc7 {[%emt 0:03:14]} 23. Nxf6+ {[%emt 0:00:15]} exf6 {[%emt 0:00:31]} 24. Qe6+ {[%emt 0:00:13]} Kg7 {[%emt 0:00:16]} 25. Qxd5 {[%emt 0:00:06]} fxg5 {[%emt 0:01:25]} 26. Qxa8 {[%emt 0:00:05]} 1-0

[Event "WYCC 2018 G16"]
[Site "Halkidiki"]
[Date "2018.10.20"]
[Round "1"]
[White "Salonika, Saina"]
[Black "Sanabria Taskila, Jenny Maria"]
[Result "1-0"]
[ECO "B57"]
[WhiteElo "2093"]
[BlackElo "1728"]
[Annotator "NA"]
[PlyCount "45"]
[EventDate "2018.10.20"]
[EventType "swiss"]
[EventCountry "GRE"]
[SourceTitle "playchess.com"]
[Source "ChessBase"]
[SourceQuality "1"]
[TimeControl "40/5400+30:1800+30"]

1. e4 {[%emt 0:00:00]} c5 {[%emt 0:00:00]} 2. Nf3 {[%emt 0:00:15]} d6 {[%emt 0:00:00]} 3. d4 {[%emt 0:00:06]} cxd4 {[%emt 0:00:30]} 4. Nxd4 {[%emt 0:00:05]} Nf6 {[%emt 0:00:27]} 5. Nc3 {[%emt 0:00:06]} Nc6 {[%emt 0:00:09]} 6. Bc4 {[%emt 0:09:54]} Qb6 {[%emt 0:02:23]} 7. Nxc6 {[%emt 0:03:38]} bxc6 {[%emt 0:01:51]} 8. O-O {[%emt 0:02:07]} e6 {[%emt 0:09:42]} 9. Qe2 {[%emt 0:08:04]} Nd7 {[%emt 0:10:18]} 10. Rb1 {[%emt 0:04:07]} Ne5 {[%emt 0:10:25]} 11. Be3 $11 {[%emt 0:02:04]} Qb4 {[%emt 0:19:58]} 12. Ba6 {[%emt 0:04:56]} Qa5 {[%emt 0:08:00]} 13. Bxc8 {[%emt 0:00:30]} Rxc8 {[%emt 0:00:08]} 14. f4 {[%emt 0:01:57]} Nd7 {[%emt 0:02:16]} 15. f5 {[%emt 0:03:09]} Be7 {[%emt 0:11:04]} 16. fxe6 {[%emt 0:09:34]} fxe6 {[%emt 0:01:13]} 17. Qg4 {[%emt 0:04:24]} Qe5 {[%emt 0:00:19]} 18. Rbd1 {[%emt 0:01:14]} Nf6 {[%emt 0:03:19]} 19. Qh3 {[%emt 0:01:33]} Nxe4 {[%emt 0:03:09]} 20. Bd4 {[%emt 0:00:44]} Ng5 {[%emt 0:00:27]} 21. Qh5+ {[%emt 0:00:10]} g6 {[%emt 0:00:31]} 22. Bxe5 {[%emt 0:00:05]} gxh5 {[%emt 0:00:14]} 23. Bxh8 {[%emt 0:00:06]} 1-0

[Event "WYCC 2018 G16"]
[Site "Halkidiki"]
[Date "2018.10.20"]
[Round "1"]
[White "Rudzinska, Michalina"]
[Black "Langvik, Ulrikke"]
[Result "1-0"]
[ECO "C08"]
[WhiteElo "2073"]
[BlackElo "1715"]
[Annotator "NA"]
[PlyCount "73"]
[EventDate "2018.10.20"]
[EventType "swiss"]
[EventCountry "GRE"]
[SourceTitle "playchess.com"]
[Source "ChessBase"]
[SourceQuality "1"]
[TimeControl "40/5400+30:1800+30"]

1. e4 {[%emt 0:00:00]} e6 {[%emt 0:00:00]} 2. d4 {[%emt 0:00:00]} d5 {[%emt 0:00:00]} 3. Nd2 {[%emt 0:00:00]} c5 {[%emt 0:00:00]} 4. exd5 {[%emt 0:00:00]} exd5 {[%emt 0:00:08]} 5. Ngf3 {[%emt 0:00:00]} Nf6 {[%emt 0:00:17]} 6. Bb5+ {[%emt 0:00:09]} Bd7 {[%emt 0:00:10]} 7. Bxd7+ {[%emt 0:00:10]} Nbxd7 {[%emt 0:00:06]} 8. O-O {[%emt 0:00:11]} Be7 {[%emt 0:00:08]} 9. dxc5 {[%emt 0:00:13]} Nxc5 {[%emt 0:00:37]} 10. Nb3 {[%emt 0:00:32]} Nce4 {[%emt 0:00:34]} 11. Nfd4 {[%emt 0:01:45]} Qd7 {[%emt 0:01:32]} 12. Re1 {[%emt 0:06:05]} O-O {[%emt 0:02:20]} 13. c3 {[%emt 0:01:34]} Rfe8 {[%emt 0:07:31]} 14. f3 {[%emt 0:04:20]} Nd6 {[%emt 0:03:15]} 15. Bg5 {[%emt 0:11:42]} Nc4 {[%emt 0:31:58]} 16. Qc2 {[%emt 0:03:58]} g6 {[%emt 0:09:57]} 17. Re2 {[%emt 0:12:59]} Nh5 {[%emt 0:04:20]} 18. Bxe7 {[%emt 0:02:16]} Rxe7 {[%emt 0:00:13]} 19. Nc5 {[%emt 0:02:40]} Qc7 {[%emt 0:04:57]} 20. Nd3 {[%emt 0:01:07]} Rae8 {[%emt 0:08:46]} 21. Rae1 {[%emt 0:00:34]} Kf8 {[%emt 0:06:34]} 22. b3 {[%emt 0:15:33]} Ne5 {[%emt 0:05:02]} 23. Nxe5 {[%emt 0:03:54]} Rxe5 {[%emt 0:00:12]} 24. Rxe5 {[%emt 0:00:42]} Rxe5 {[%emt 0:00:08]} 25. Rxe5 {[%emt 0:00:08]} Qxe5 {[%emt 0:00:07]} 26. Qe2 {[%emt 0:00:39]} f6 {[%emt 0:08:31]} 27. g3 {[%emt 0:06:11]} Ng7 {[%emt 0:02:55]} 28. Kf2 {[%emt 0:03:47]} a6 {[%emt 0:00:45]} 29. Qe3 {[%emt 0:03:28]} Kf7 {[%emt 0:01:16]} 30. Ne2 {[%emt 0:02:14]} Nf5 {[%emt 0:01:45]} 31. Qb6 {[%emt 0:00:49]} Qe7 {[%emt 0:00:10]} 32. g4 {[%emt 0:03:08]} Nd6 {[%emt 0:00:51]} 33. Nf4 {[%emt 0:05:48]} Qe5 {[%emt 0:00:49]} 34. Qe3 {[%emt 0:00:09]} Qg5 {[%emt 0:00:33]} 35. Qe6+ {[%emt 0:00:09]} Kg7 {[%emt 0:00:16]} 36. Qxd6 {[%emt 0:00:37]} f5 {[%emt 0:00:43]} 37. Ne6+ {[%emt 0:00:06]} 1-0

[Event "WYCC 2018 G16"]
[Site "Halkidiki"]
[Date "2018.10.20"]
[Round "1"]
[White "Urh, Zala"]
[Black "Hewawasam, H Y Nevanjee Dimany"]
[Result "1-0"]
[ECO "E32"]
[WhiteElo "2066"]
[BlackElo "1686"]
[Annotator "NA"]
[PlyCount "117"]
[EventDate "2018.10.20"]
[EventType "swiss"]
[EventCountry "GRE"]
[SourceTitle "playchess.com"]
[Source "ChessBase"]
[SourceQuality "1"]
[TimeControl "40/5400+30:1800+30"]

1. d4 {[%emt 0:00:00]} Nf6 {[%emt 0:00:00]} 2. c4 {[%emt 0:00:00]} e6 {[%emt 0:00:00]} 3. Nc3 {[%emt 0:00:00]} Bb4 {[%emt 0:00:00]} 4. Qc2 {[%emt 0:00:00]} O-O {[%emt 0:00:09]} 5. a3 {[%emt 0:00:00]} Be7 {[%emt 0:00:37] E32: Nimzo-Indian: Classical (4 Qc2): 4...0-0} (5... Bxc3+ 6. Qxc3 d5 7. Bg5 dxc4 8. Qxc4 b6 9. Rd1 Ba6 10. Qa4 h6 11. Bh4 Qe7 12. Nf3 Rd8 13. e3 Bxf1 14. Rxf1 c5 15. dxc5 Rxd1+ 16. Qxd1 bxc5 {1-0 (43) Mamedyarov,S (2801)-Caruana,F (2822) Saint Louis 2018}) 6. e4 {[%emt 0:01:16]} d6 {[%emt 0:01:50]} 7. Bd3 {[%emt 0:01:29]} Nbd7 {[%emt 0:00:58]} 8. Nf3 {[%emt 0:01:02]} h6 $146 {[%emt 0:06:29]} ({Predecessor:} 8... e5 9. b4 exd4 10. Nxd4 Ne5 11. O-O Nxd3 12. Qxd3 c6 13. Bb2 {½-½ (64) Pakhteev,Y (2309)-Asrian,A (2053) Kimry 2007}) 9. O-O {[%emt 0:00:48]} a6 {[%emt 0:03:59]} 10. b4 {[%emt 0:02:41]} ({White should try} 10. e5) 10... b6 {[%emt 0:07:35]} 11. h3 {[%emt 0:04:07]} Bb7 {[%emt 0:10:32]} 12. Bf4 {[%emt 0:01:04]} c5 {[%emt 0:04:11]} 13. dxc5 {[%emt 0:04:06]} bxc5 {[%emt 0:00:54]} 14. Rfd1 {[%emt 0:01:23]} Rc8 {[%emt 0:06:46]} 15. Rab1 {[%emt 0:02:19]} cxb4 {[%emt 0:05:59]} 16. axb4 {[%emt 0:00:25]} e5 {[%emt 0:01:52]} 17. Be3 {[%emt 0:02:20]} g5 {[%emt 0:04:50]} 18. Nd2 {[%emt 0:07:03]} Qc7 {[%emt 0:05:16]} 19. Qb3 {[%emt 0:02:55]} Nh5 {[%emt 0:01:53]} 20. Ne2 {[%emt 0:10:04]} Nf4 {[%emt 0:05:03]} 21. Ng3 {[%emt 0:00:24]} Kh7 {[%emt 0:03:00]} 22. Nf5 $18 {[%emt 0:03:06]} Nf6 {[%emt 0:00:34]} 23. Kh2 {[%emt 0:02:40]} Qd7 {[%emt 0:01:44]} 24. g3 {[%emt 0:04:34]} Ne6 {[%emt 0:06:14]} 25. Ra1 {[%emt 0:08:26]} Nh5 {[%emt 0:03:49]} 26. Qb2 {[%emt 0:06:54]} Rg8 {[%emt 0:03:04]} 27. Nb3 {[%emt 0:03:58]} Nhf4 {[%emt 0:00:39]} 28. gxf4 {[%emt 0:08:10]} gxf4 {[%emt 0:00:07]} 29. Bb6 {[%emt 0:00:47]} Ng5 {[%emt 0:00:46]} 30. Qe2 {[%emt 0:02:13]} Qe6 {[%emt 0:04:45]} 31. Rg1 {[%emt 0:02:42]} f3 {[%emt 0:01:36]} 32. Qe3 {[%emt 0:01:51]} Bd8 {[%emt 0:03:43]} 33. Bxd8 {[%emt 0:01:30]} Rcxd8 {[%emt 0:00:08]} 34. Nd2 {[%emt 0:03:39]} Qg6 {[%emt 0:05:16]} 35. Nxf3 {[%emt 0:01:02]} Qh5 {[%emt 0:00:45]} 36. Nxg5+ {[%emt 0:00:08]} hxg5 {[%emt 0:00:12]} 37. Be2 {[%emt 0:00:58]} Qg6 {[%emt 0:00:54]} 38. Ne7 {[%emt 0:00:17]} Qxe4 {[%emt 0:00:34]} 39. Qxe4+ {[%emt 0:00:07]} Bxe4 {[%emt 0:00:07]} 40. Nxg8 {[%emt 0:00:00]} Rxg8 {[%emt 0:00:00]} 41. Rxa6 {[%emt 0:01:05]} Rg6 {[%emt 0:00:40]} 42. Rd1 {[%emt 0:00:15]} Rf6 {[%emt 0:00:20]} 43. Kg1 {[%emt 0:00:29]} Rh6 {[%emt 0:01:28]} 44. Bd3 {[%emt 0:00:29]} f5 {[%emt 0:01:16]} 45. Bxe4 {[%emt 0:00:05]} fxe4 {[%emt 0:00:06]} 46. Rdxd6 {[%emt 0:00:09]} Rxd6 {[%emt 0:02:57]} 47. Rxd6 {[%emt 0:00:04]} Kg7 {[%emt 0:00:08]} 48. Re6 {[%emt 0:00:03]} e3 {[%emt 0:00:10]} 49. fxe3 {[%emt 0:00:02]} Kf7 {[%emt 0:00:08]} 50. Rxe5 {[%emt 0:00:03]} Kf6 {[%emt 0:00:05]} 51. Rd5 {[%emt 0:00:02]} Ke6 {[%emt 0:00:09]} 52. b5 {[%emt 0:00:02]} g4 {[%emt 0:00:08]} 53. hxg4 {[%emt 0:00:06]} Ke7 {[%emt 0:00:08]} 54. b6 {[%emt 0:00:04]} Ke6 {[%emt 0:00:04]} 55. b7 {[%emt 0:00:04]} Ke7 {[%emt 0:00:07]} 56. b8=Q {[%emt 0:00:03]} Ke6 {[%emt 0:00:07]} 57. Qe5+ {[%emt 0:00:19]} Kf7 {[%emt 0:00:10]} 58. Rd7+ {[%emt 0:00:04]} Kg6 {[%emt 0:00:11]} 59. Qg7# {[%emt 0:00:04]} 1-0

[Event "WYCC 2018 G16"]
[Site "Halkidiki"]
[Date "2018.10.20"]
[Round "1"]
[White "Aubert, Estee"]
[Black "Simkunaite, Gabija"]
[Result "1/2-1/2"]
[ECO "A45"]
[WhiteElo "2064"]
[BlackElo "1650"]
[Annotator "NA"]
[PlyCount "148"]
[EventDate "2018.10.20"]
[EventType "swiss"]
[EventCountry "GRE"]
[SourceTitle "playchess.com"]
[Source "ChessBase"]
[SourceQuality "1"]
[TimeControl "40/5400+30:1800+30"]

1. d4 {[%emt 0:00:00]} Nf6 {[%emt 0:00:00]} 2. Bf4 {[%emt 0:00:00]} d5 {[%emt 0:00:17]} 3. e3 {[%emt 0:00:00]} c5 {[%emt 0:00:21]} 4. c3 {[%emt 0:00:13]} Nc6 {[%emt 0:00:23]} 5. Nd2 {[%emt 0:00:09]} e6 {[%emt 0:01:34]} 6. Ngf3 {[%emt 0:00:10]} Nh5 {[%emt 0:01:56]} 7. Bg5 {[%emt 0:03:28] D02: Damenbauernspiele} Be7 {[%emt 0:01:44]} (7... Qc7 8. Ne5 g6 9. Nxc6 bxc6 10. Be2 Rb8 11. Rb1 h6 12. Bh4 g5 13. Bxh5 gxh4 14. O-O Bd6 {1-0 (53) Harikrishna,P (2732)-Navara,D (2727) Prague 2018}) 8. Bxe7 {[%emt 0:02:12]} Qxe7 {[%emt 0:00:05]} 9. Bb5 {[%emt 0:03:16]} Bd7 {[%emt 0:01:43]} 10. Bxc6 {[%emt 0:09:55]} Bxc6 {[%emt 0:00:36]} 11. Ne5 {[%emt 0:00:27]} Nf6 {[%emt 0:00:52]} 12. Nxc6 {[%emt 0:01:41]} bxc6 {[%emt 0:00:07]} 13. Qa4 {[%emt 0:01:45]} Rc8 {[%emt 0:04:40] [#]} 14. Rc1 $146 {[%emt 0:24:31]} ({Vorgänger:} 14. O-O O-O {½-½ (80) Gupta,A (2610)-Demidov,M (2523) chess.com INT 2018}) 14... O-O {[%emt 0:06:29]} 15. Qa3 {[%emt 0:00:39]} Nd7 {[%emt 0:03:10]} 16. Nb3 {[%emt 0:01:37]} Qg5 {[%emt 0:02:23]} 17. O-O {[%emt 0:02:57]} c4 {[%emt 0:02:19]} 18. Nd2 {[%emt 0:02:03]} Rfd8 {[%emt 0:05:38]} 19. f4 {[%emt 0:07:51]} Qg6 {[%emt 0:01:16]} 20. e4 {[%emt 0:02:15]} Nf6 {[%emt 0:08:14]} 21. e5 {[%emt 0:06:03]} Ne4 {[%emt 0:01:37]} 22. Nxe4 {[%emt 0:03:35]} Qxe4 {[%emt 0:00:44]} 23. Rce1 {[%emt 0:00:10]} Qf5 $11 {[%emt 0:01:25]} 24. Qe7 {[%emt 0:08:49]} Re8 {[%emt 0:06:29]} 25. Qh4 {[%emt 0:01:24]} c5 {[%emt 0:02:07]} 26. g4 {[%emt 0:07:04]} Qg6 {[%emt 0:00:46]} 27. dxc5 {[%emt 0:02:26]} Rxc5 {[%emt 0:00:01]} 28. Kh1 {[%emt 0:00:05]} f5 {[%emt 0:01:57]} 29. exf6 {[%emt 0:00:51]} Qxf6 {[%emt 0:00:08]} 30. Qh5 {[%emt 0:02:25]} Qg6 {[%emt 0:05:54]} 31. Qxg6 {[%emt 0:04:55]} hxg6 {[%emt 0:00:01]} 32. Re5 {[%emt 0:00:15]} Rc7 {[%emt 0:03:29]} 33. Kg2 {[%emt 0:00:17]} Kf7 {[%emt 0:00:42]} 34. Kg3 {[%emt 0:01:58]} Rb8 {[%emt 0:01:32]} 35. Rf2 {[%emt 0:00:07]} Rcb7 {[%emt 0:01:09]} 36. Ree2 {[%emt 0:00:08]} Rd8 {[%emt 0:00:28]} 37. Rd2 {[%emt 0:01:18]} Kf6 {[%emt 0:04:00]} 38. g5+ {[%emt 0:00:38]} Kf7 {[%emt 0:00:22]} 39. Kg4 {[%emt 0:00:05]} Re7 {[%emt 0:01:55]} 40. h4 {[%emt 0:00:00]} a5 {[%emt 0:00:00]} 41. Rfe2 {[%emt 0:02:06]} Rb8 {[%emt 0:02:47]} 42. Re5 {[%emt 0:06:54]} Rb6 {[%emt 0:00:50]} 43. h5 {[%emt 0:02:41]} gxh5+ {[%emt 0:00:59]} 44. Kxh5 {[%emt 0:00:04]} Rb8 {[%emt 0:00:06]} 45. f5 {[%emt 0:02:39]} Rh8+ {[%emt 0:01:16]} 46. Kg4 {[%emt 0:00:04]} exf5+ {[%emt 0:00:10]} 47. Rxf5+ {[%emt 0:00:06]} Kg6 {[%emt 0:02:52]} 48. Rdxd5 {[%emt 0:01:44]} Rh2 {[%emt 0:02:01]} 49. Rd6+ {[%emt 0:09:31]} Kh7 {[%emt 0:00:07]} 50. Rxa5 {[%emt 0:05:47]} Rg2+ {[%emt 0:00:38]} 51. Kf3 {[%emt 0:02:33]} Rxb2 {[%emt 0:00:24]} 52. Rd4 {[%emt 0:01:06]} Rc7 {[%emt 0:00:37]} 53. Ke4 {[%emt 0:01:24]} Rc2 {[%emt 0:00:27]} 54. Ra3 {[%emt 0:00:04]} Kg6 {[%emt 0:00:29]} 55. Kd5 {[%emt 0:01:10]} Kxg5 {[%emt 0:00:19]} 56. Rxc4 {[%emt 0:00:38]} Rd2+ {[%emt 0:00:31]} 57. Rd4 {[%emt 0:00:03]} Rd7+ {[%emt 0:00:12]} 58. Kc5 {[%emt 0:01:05]} R7xd4 {[%emt 0:01:02]} 59. cxd4 {[%emt 0:00:05]} Kf4 {[%emt 0:00:07]} 60. d5 {[%emt 0:01:03]} g5 {[%emt 0:00:50]} 61. Kc6 {[%emt 0:00:47]} Ke5 {[%emt 0:00:45]} 62. Re3+ {[%emt 0:00:40]} Kf4 {[%emt 0:00:12]} 63. Ra3 {[%emt 0:00:35]} Ke5 {[%emt 0:00:01]} 64. Rg3 {[%emt 0:00:50]} Kf4 {[%emt 0:00:59]} 65. Rg1 {[%emt 0:00:08]} Rxa2 {[%emt 0:00:22]} 66. Rd1 {[%emt 0:00:18]} g4 {[%emt 0:00:40]} 67. d6 {[%emt 0:00:06]} Ra6+ {[%emt 0:01:02]} 68. Kb7 {[%emt 0:01:02]} Rxd6 {[%emt 0:00:11]} 69. Rxd6 {[%emt 0:00:03]} Kf3 {[%emt 0:00:06]} 70. Kc6 {[%emt 0:00:14]} g3 {[%emt 0:00:02]} 71. Rf6+ {[%emt 0:00:11]} Ke2 {[%emt 0:00:07]} 72. Rg6 {[%emt 0:00:25]} Kf2 {[%emt 0:00:01]} 73. Kd5 {[%emt 0:00:42]} g2 {[%emt 0:00:01]} 74. Rf6+ {[%emt 0:00:19]} Ke2 {[%emt 0:00:08]} 1/2-1/2

[Event "WYCC 2018 G16"]
[Site "Halkidiki"]
[Date "2018.10.20"]
[Round "1"]
[White "Gombocz, Zsofia"]
[Black "Ortega Beltran, Ximena"]
[Result "1/2-1/2"]
[ECO "B27"]
[WhiteElo "2038"]
[BlackElo "1628"]
[Annotator "NA"]
[PlyCount "75"]
[EventDate "2018.10.20"]
[EventType "swiss"]
[EventCountry "GRE"]
[SourceTitle "playchess.com"]
[Source "ChessBase"]
[SourceQuality "1"]
[TimeControl "40/5400+30:1800+30"]

1. e4 {[%emt 0:00:00]} c5 {[%emt 0:00:00]} 2. Nf3 {[%emt 0:00:00]} g6 {[%emt 0:00:21]} 3. d4 {[%emt 0:00:00]} cxd4 {[%emt 0:00:08]} 4. Qxd4 {[%emt 0:00:01]} Nf6 {[%emt 0:00:11]} 5. Bb5 {[%emt 0:00:10]} a6 {[%emt 0:00:11]} 6. e5 {[%emt 0:00:48]} axb5 {[%emt 0:00:39]} 7. exf6 {[%emt 0:00:14]} Nc6 {[%emt 0:00:30]} 8. Qd3 {[%emt 0:04:01]} b4 {[%emt 0:00:15]} 9. fxe7 {[%emt 0:08:06]} Qxe7+ {[%emt 0:01:53]} 10. Be3 {[%emt 0:00:56]} Bg7 {[%emt 0:01:01]} 11. c3 {[%emt 0:02:42]} O-O {[%emt 0:00:54]} 12. O-O $15 {[%emt 0:01:26]} d6 {[%emt 0:05:08]} 13. Nd4 {[%emt 0:04:25]} Ne5 {[%emt 0:05:48]} 14. Qe4 {[%emt 0:09:56]} Re8 {[%emt 0:03:50]} 15. Nd2 {[%emt 0:07:57]} bxc3 {[%emt 0:06:07]} 16. bxc3 {[%emt 0:00:11]} Ng4 {[%emt 0:05:36]} 17. Qxe7 {[%emt 0:01:19]} Rxe7 {[%emt 0:00:05]} 18. Bg5 {[%emt 0:02:17]} Rc7 {[%emt 0:00:45]} 19. Ne4 {[%emt 0:20:59]} d5 {[%emt 0:19:13]} 20. Nb5 {[%emt 0:04:14]} Rc6 {[%emt 0:09:14]} 21. Ng3 {[%emt 0:08:45]} Rc5 {[%emt 0:11:24]} 22. a4 {[%emt 0:03:25]} Bd7 {[%emt 0:08:54]} 23. Be7 {[%emt 0:07:26]} Rc4 {[%emt 0:00:49]} 24. h3 {[%emt 0:00:40]} Nf6 {[%emt 0:01:17]} 25. Bb4 {[%emt 0:00:27]} Ne4 {[%emt 0:01:26]} 26. Nxe4 {[%emt 0:02:40]} Rxe4 {[%emt 0:04:03]} 27. Nc7 {[%emt 0:03:13]} Rxa4 {[%emt 0:02:29]} 28. Nxd5 {[%emt 0:03:33]} h5 {[%emt 0:03:16]} 29. Rxa4 {[%emt 0:02:09]} Bxa4 {[%emt 0:00:16]} 30. Ra1 {[%emt 0:00:37]} b5 {[%emt 0:00:09]} 31. Rc1 {[%emt 0:01:09]} Bb3 {[%emt 0:01:39]} 32. Ne3 {[%emt 0:00:56]} Bc4 {[%emt 0:01:30]} 33. Rd1 {[%emt 0:00:48]} Kh7 {[%emt 0:02:43]} 34. Rd7 {[%emt 0:00:18]} Be6 {[%emt 0:03:24]} 35. Rb7 {[%emt 0:00:16]} Re5 {[%emt 0:00:02]} 36. Bd6 {[%emt 0:00:36]} Re4 {[%emt 0:00:21]} 37. Bb4 {[%emt 0:00:06]} Re5 {[%emt 0:00:19]} 38. Bd6 {[%emt 0:00:07]} 1/2-1/2